{"text_format":"3","workbook":"xlsx","n_sheets":4,"sheets":["ZIELE","ERNÄHRUNG","TRAINING","Diagrammberechnungen"],"not_rendered":{"charts":2,"defined_names":19},"read":"whole","date_system":"1900"}

{"sheet":"ZIELE","index":0,"n_rows":16,"n_cols":11,"rows_kept":16,"merged":[[2,1,3,1],[7,1,8,1]]}
[null,{"$f":"TODAY()","v":"2017-05-09"},"ZIELE",{"$nulls":6},"Training","Ernährung"]
[null,"ANFANGSDATUM","ERNÄHRUNGS- UND TRAININGSJOURNAL"]
[null,{"$f":"Anfangsdatum+121","v":"2017-09-07"},"ERNÄHRUNGSANALYSE"]
[]
[null,"ENDDATUM"]
[null,{"v":100,"d":"100.00"}]
[null,"ANFANGSGEWICHT"]
[null,{"v":80,"d":"80.00"},"TRAININGSANALYSE"]
[]
[null,"ENDGEWICHT"]
[null,{"$f":"Anfangsgewicht-EndGewicht","v":20}]
[null,"ZIELVERLUST"]
[null,{"$f":"EndDatum-Anfangsdatum","v":121}]
[null,"TAGE FÜR DEN ABBAU"]
[null,{"$f":"Zielgewicht/B13","v":{"v":0.1652892561983471,"d":"0.17"}}]
[null,"VERLUST PRO TAG"]

{"sheet":"ERNÄHRUNG","index":1,"n_rows":19,"n_cols":9,"rows_kept":19}
[null,"ERNÄHRUNG",{"$nulls":4},"Ziele","Training"]
[null,{"$f":"Untertitel","v":"ERNÄHRUNGS- UND TRAININGSJOURNAL"}]
[null,"DATUM","UHRZEIT","BESCHREIBUNG","KALORIEN","KOHLENHYDRATE","PROTEIN","FETT","ANMERKUNGEN"]
[null,{"$f":"Anfangsdatum","v":"2017-05-09"},"07:00:00","Kaffee",1,0,0,0,"Morgenkaffee"]
[null,{"$f":"Anfangsdatum","v":"2017-05-09"},"08:00:00","Bagel",10,10,2,10,"Leichtes Frühstück"]
[null,{"$f":"Anfangsdatum","v":"2017-05-09"},"12:00:00","Mittagessen",283,46,18,{"v":3.5,"d":"4"},"Truthahnsandwich"]
[null,{"$f":"Anfangsdatum","v":"2017-05-09"},"19:00:00","Abendessen",500,42,35,25,"Tater-Tot-Auflauf"]
[null,{"$f":"Anfangsdatum+1","v":"2017-05-10"},"07:00:00","Kaffee",1,0,0,0,"Morgenkaffee"]
[null,{"$f":"Anfangsdatum+1","v":"2017-05-10"},"08:00:00","Toast",10,10,2,10,"Leichtes Frühstück"]
[null,{"$f":"Anfangsdatum+1","v":"2017-05-10"},"12:00:00","Mittagessen",189,26,3,8,"Sandwich"]
[null,{"$f":"Anfangsdatum+1","v":"2017-05-10"},"19:00:00","Abendessen",477,62,{"v":13.5,"d":"14"},21,"Abendessen"]
[null,{"$f":"Anfangsdatum+2","v":"2017-05-11"},"07:00:00","Kaffee",1,0,0,0,"Morgenkaffee"]
[null,{"$f":"Anfangsdatum+2","v":"2017-05-11"},"08:00:00","Bagel",245,48,10,{"v":1.5,"d":"2"},"Leichtes Frühstück"]
[null,{"$f":"Anfangsdatum+2","v":"2017-05-11"},"12:00:00","Mittagessen",247,11,43,5,"Salat"]
[null,{"$f":"Anfangsdatum+2","v":"2017-05-11"},"19:00:00","Abendessen",456,64,32,22,"Abendessen"]
[null,{"$f":"Anfangsdatum+3","v":"2017-05-12"},"07:00:00","Toast",10,10,2,10,"Leichtes Frühstück"]
[null,{"$f":"Anfangsdatum+3","v":"2017-05-12"},"10:00:00","Kaffee",135,{"v":12.36,"d":"12"},{"v":8.81,"d":"9"},{"v":5.51,"d":"6"},"Latte"]
[null,{"$f":"Anfangsdatum+3","v":"2017-05-12"},"12:15:00","Mittagessen",184,7,{"v":5.43,"d":"5"},15,"Salat"]
[null,{"$f":"Anfangsdatum+5","v":"2017-05-14"},"19:00:00","Abendessen",477,62,{"v":13.5,"d":"14"},21,"Abendessen"]

{"sheet":"TRAINING","index":2,"n_rows":20,"n_cols":7,"rows_kept":20}
[null,"TRAINING",{"$nulls":3},"Ernährung","Ziele"]
[null,{"$f":"Untertitel","v":"ERNÄHRUNGS- UND TRAININGSJOURNAL"}]
[null,"DATUM","DAUER (MINUTEN)","VERBRAUCHTE KALORIEN","ANMERKUNGEN"]
[null,{"$f":"Anfangsdatum+4","v":"2017-05-13"},30,120,"Laufbandtraining"]
[null,{"$f":"B4+1","v":"2017-05-14"},60,180,"Low Impact-Aerobics"]
[null,{"$f":"B5+1","v":"2017-05-15"},60,350,"Extremtraining"]
[null,"2017-05-16",30,150,"Laufbandtraining"]
[null,"2017-05-17",25,125,"Laufen"]
[null,"2017-05-18",20,285,"Laufbandtraining"]
[null,"2017-05-19",40,205,"Laufen"]
[null,"2017-05-20",30,335,"Laufen"]
[null,"2017-05-21",40,175,"Laufen"]
[null,"2017-05-22",45,325,"Laufbandtraining"]
[null,"2017-05-23",40,270,"Laufen"]
[null,"2017-05-24",20,295,"Laufbandtraining"]
[null,"2017-05-25",45,350,"Laufen"]
[null,"2017-05-26",35,320,"Laufen"]
[null,"2017-05-27",40,290,"Laufen"]
[null,{"$f":"B18+1","v":"2017-05-28"},25,265,"Laufbandtraining"]
[null,"2017-05-29",20,195,"Laufen"]

{"sheet":"Diagrammberechnungen","index":3,"n_rows":36,"n_cols":10,"rows_kept":36,"hidden":true,"merged":[[1,1,1,9],[19,1,19,9]]}
[]
[null,"ERNÄHRUNGSANALYSE-DIAGRAMMDATEN"]
[]
[null,"Anfangszeile",{"$f":"ROW(Ernährung[[#Headers],[DATUM]])+1","v":4},"DATUM","TAG","FETT","PROTEIN","KOHLENHYDRATE","KALORIEN","Anzahl"]
[null,"Letzter Ernährungseintrag",{"$f":"MATCH(9.99E+307,Ernährung[DATUM])+ErnährungsZeilenAnfang-1","v":19},{"$f":"IFERROR(IF(INDEX(Ernährung[],ErnährungLetztesEnde-ErnährungsZeilenAnfang-J5,1)<>\"\",INDEX(Ernährung[],ErnährungLetztesEnde-ErnährungsZeilenAnfang-J5,1),\"\"),\"\")","v":"2017-05-09"},{"$f":"UPPER(TEXT(D5,\"TTT\"))","v":"DI"},{"$f":"IFERROR((IF(INDEX(Ernährung[],ErnährungLetztesEnde-ErnährungsZeilenAnfang-J5,1)<>\"\",INDEX(Ernährung[],ErnährungLetztesEnde-ErnährungsZeilenAnfang-J5,7),NA())),NA())","v":3.5},{"$f":"IFERROR((IF(INDEX(Ernährung[],ErnährungLetztesEnde-ErnährungsZeilenAnfang-J5,1)<>\"\",INDEX(Ernährung[],ErnährungLetztesEnde-ErnährungsZeilenAnfang-J5,6),NA())),NA())","v":18},{"$f":"IFERROR((IF(INDEX(Ernährung[],ErnährungLetztesEnde-ErnährungsZeilenAnfang-J5,1)<>\"\",INDEX(Ernährung[],ErnährungLetztesEnde-ErnährungsZeilenAnfang-J5,5),NA())),NA())","v":46},{"$f":"IFERROR((IF(INDEX(Ernährung[],ErnährungLetztesEnde-ErnährungsZeilenAnfang-J5,1)<>\"\",INDEX(Ernährung[],ErnährungLetztesEnde-ErnährungsZeilenAnfang-J5,4),NA())),NA())","v":283},12]
[{"$nulls":3},{"$f":"IFERROR(IF(INDEX(Ernährung[],ErnährungLetztesEnde-ErnährungsZeilenAnfang-J6,1)<>\"\",INDEX(Ernährung[],ErnährungLetztesEnde-ErnährungsZeilenAnfang-J6,1),\"\"),\"\")","v":"2017-05-09"},"DI",{"$f":"IFERROR((IF(INDEX(Ernährung[],ErnährungLetztesEnde-ErnährungsZeilenAnfang-J6,1)<>\"\",INDEX(Ernährung[],ErnährungLetztesEnde-ErnährungsZeilenAnfang-J6,7),NA())),NA())","v":25},{"$f":"IFERROR((IF(INDEX(Ernährung[],ErnährungLetztesEnde-ErnährungsZeilenAnfang-J6,1)<>\"\",INDEX(Ernährung[],ErnährungLetztesEnde-ErnährungsZeilenAnfang-J6,6),NA())),NA())","v":35},{"$f":"IFERROR((IF(INDEX(Ernährung[],ErnährungLetztesEnde-ErnährungsZeilenAnfang-J6,1)<>\"\",INDEX(Ernährung[],ErnährungLetztesEnde-ErnährungsZeilenAnfang-J6,5),NA())),NA())","v":42},{"$f":"IFERROR((IF(INDEX(Ernährung[],ErnährungLetztesEnde-ErnährungsZeilenAnfang-J6,1)<>\"\",INDEX(Ernährung[],ErnährungLetztesEnde-ErnährungsZeilenAnfang-J6,4),NA())),NA())","v":500},11]
[{"$nulls":3},{"$f":"IFERROR(IF(INDEX(Ernährung[],ErnährungLetztesEnde-ErnährungsZeilenAnfang-J7,1)<>\"\",INDEX(Ernährung[],ErnährungLetztesEnde-ErnährungsZeilenAnfang-J7,1),\"\"),\"\")","v":"2017-05-10"},"MI",{"$f":"IFERROR((IF(INDEX(Ernährung[],ErnährungLetztesEnde-ErnährungsZeilenAnfang-J7,1)<>\"\",INDEX(Ernährung[],ErnährungLetztesEnde-ErnährungsZeilenAnfang-J7,7),NA())),NA())","v":0},{"$f":"IFERROR((IF(INDEX(Ernährung[],ErnährungLetztesEnde-ErnährungsZeilenAnfang-J7,1)<>\"\",INDEX(Ernährung[],ErnährungLetztesEnde-ErnährungsZeilenAnfang-J7,6),NA())),NA())","v":0},{"$f":"IFERROR((IF(INDEX(Ernährung[],ErnährungLetztesEnde-ErnährungsZeilenAnfang-J7,1)<>\"\",INDEX(Ernährung[],ErnährungLetztesEnde-ErnährungsZeilenAnfang-J7,5),NA())),NA())","v":0},{"$f":"IFERROR((IF(INDEX(Ernährung[],ErnährungLetztesEnde-ErnährungsZeilenAnfang-J7,1)<>\"\",INDEX(Ernährung[],ErnährungLetztesEnde-ErnährungsZeilenAnfang-J7,4),NA())),NA())","v":1},10]
[{"$nulls":3},{"$f":"IFERROR(IF(INDEX(Ernährung[],ErnährungLetztesEnde-ErnährungsZeilenAnfang-J8,1)<>\"\",INDEX(Ernährung[],ErnährungLetztesEnde-ErnährungsZeilenAnfang-J8,1),\"\"),\"\")","v":"2017-05-10"},"MI",{"$f":"IFERROR((IF(INDEX(Ernährung[],ErnährungLetztesEnde-ErnährungsZeilenAnfang-J8,1)<>\"\",INDEX(Ernährung[],ErnährungLetztesEnde-ErnährungsZeilenAnfang-J8,7),NA())),NA())","v":10},{"$f":"IFERROR((IF(INDEX(Ernährung[],ErnährungLetztesEnde-ErnährungsZeilenAnfang-J8,1)<>\"\",INDEX(Ernährung[],ErnährungLetztesEnde-ErnährungsZeilenAnfang-J8,6),NA())),NA())","v":2},{"$f":"IFERROR((IF(INDEX(Ernährung[],ErnährungLetztesEnde-ErnährungsZeilenAnfang-J8,1)<>\"\",INDEX(Ernährung[],ErnährungLetztesEnde-ErnährungsZeilenAnfang-J8,5),NA())),NA())","v":10},{"$f":"IFERROR((IF(INDEX(Ernährung[],ErnährungLetztesEnde-ErnährungsZeilenAnfang-J8,1)<>\"\",INDEX(Ernährung[],ErnährungLetztesEnde-ErnährungsZeilenAnfang-J8,4),NA())),NA())","v":10},9]
[{"$nulls":3},{"$f":"IFERROR(IF(INDEX(Ernährung[],ErnährungLetztesEnde-ErnährungsZeilenAnfang-J9,1)<>\"\",INDEX(Ernährung[],ErnährungLetztesEnde-ErnährungsZeilenAnfang-J9,1),\"\"),\"\")","v":"2017-05-10"},"MI",{"$f":"IFERROR((IF(INDEX(Ernährung[],ErnährungLetztesEnde-ErnährungsZeilenAnfang-J9,1)<>\"\",INDEX(Ernährung[],ErnährungLetztesEnde-ErnährungsZeilenAnfang-J9,7),NA())),NA())","v":8},{"$f":"IFERROR((IF(INDEX(Ernährung[],ErnährungLetztesEnde-ErnährungsZeilenAnfang-J9,1)<>\"\",INDEX(Ernährung[],ErnährungLetztesEnde-ErnährungsZeilenAnfang-J9,6),NA())),NA())","v":3},{"$f":"IFERROR((IF(INDEX(Ernährung[],ErnährungLetztesEnde-ErnährungsZeilenAnfang-J9,1)<>\"\",INDEX(Ernährung[],ErnährungLetztesEnde-ErnährungsZeilenAnfang-J9,5),NA())),NA())","v":26},{"$f":"IFERROR((IF(INDEX(Ernährung[],ErnährungLetztesEnde-ErnährungsZeilenAnfang-J9,1)<>\"\",INDEX(Ernährung[],ErnährungLetztesEnde-ErnährungsZeilenAnfang-J9,4),NA())),NA())","v":189},8]
[{"$nulls":3},{"$f":"IFERROR(IF(INDEX(Ernährung[],ErnährungLetztesEnde-ErnährungsZeilenAnfang-J10,1)<>\"\",INDEX(Ernährung[],ErnährungLetztesEnde-ErnährungsZeilenAnfang-J10,1),\"\"),\"\")","v":"2017-05-10"},"MI",{"$f":"IFERROR((IF(INDEX(Ernährung[],ErnährungLetztesEnde-ErnährungsZeilenAnfang-J10,1)<>\"\",INDEX(Ernährung[],ErnährungLetztesEnde-ErnährungsZeilenAnfang-J10,7),NA())),NA())","v":21},{"$f":"IFERROR((IF(INDEX(Ernährung[],ErnährungLetztesEnde-ErnährungsZeilenAnfang-J10,1)<>\"\",INDEX(Ernährung[],ErnährungLetztesEnde-ErnährungsZeilenAnfang-J10,6),NA())),NA())","v":13.5},{"$f":"IFERROR((IF(INDEX(Ernährung[],ErnährungLetztesEnde-ErnährungsZeilenAnfang-J10,1)<>\"\",INDEX(Ernährung[],ErnährungLetztesEnde-ErnährungsZeilenAnfang-J10,5),NA())),NA())","v":62},{"$f":"IFERROR((IF(INDEX(Ernährung[],ErnährungLetztesEnde-ErnährungsZeilenAnfang-J10,1)<>\"\",INDEX(Ernährung[],ErnährungLetztesEnde-ErnährungsZeilenAnfang-J10,4),NA())),NA())","v":477},7]
[{"$nulls":3},{"$f":"IFERROR(IF(INDEX(Ernährung[],ErnährungLetztesEnde-ErnährungsZeilenAnfang-J11,1)<>\"\",INDEX(Ernährung[],ErnährungLetztesEnde-ErnährungsZeilenAnfang-J11,1),\"\"),\"\")","v":"2017-05-11"},"DO",{"$f":"IFERROR((IF(INDEX(Ernährung[],ErnährungLetztesEnde-ErnährungsZeilenAnfang-J11,1)<>\"\",INDEX(Ernährung[],ErnährungLetztesEnde-ErnährungsZeilenAnfang-J11,7),NA())),NA())","v":0},{"$f":"IFERROR((IF(INDEX(Ernährung[],ErnährungLetztesEnde-ErnährungsZeilenAnfang-J11,1)<>\"\",INDEX(Ernährung[],ErnährungLetztesEnde-ErnährungsZeilenAnfang-J11,6),NA())),NA())","v":0},{"$f":"IFERROR((IF(INDEX(Ernährung[],ErnährungLetztesEnde-ErnährungsZeilenAnfang-J11,1)<>\"\",INDEX(Ernährung[],ErnährungLetztesEnde-ErnährungsZeilenAnfang-J11,5),NA())),NA())","v":0},{"$f":"IFERROR((IF(INDEX(Ernährung[],ErnährungLetztesEnde-ErnährungsZeilenAnfang-J11,1)<>\"\",INDEX(Ernährung[],ErnährungLetztesEnde-ErnährungsZeilenAnfang-J11,4),NA())),NA())","v":1},6]
[{"$nulls":3},{"$f":"IFERROR(IF(INDEX(Ernährung[],ErnährungLetztesEnde-ErnährungsZeilenAnfang-J12,1)<>\"\",INDEX(Ernährung[],ErnährungLetztesEnde-ErnährungsZeilenAnfang-J12,1),\"\"),\"\")","v":"2017-05-11"},"DO",{"$f":"IFERROR((IF(INDEX(Ernährung[],ErnährungLetztesEnde-ErnährungsZeilenAnfang-J12,1)<>\"\",INDEX(Ernährung[],ErnährungLetztesEnde-ErnährungsZeilenAnfang-J12,7),NA())),NA())","v":1.5},{"$f":"IFERROR((IF(INDEX(Ernährung[],ErnährungLetztesEnde-ErnährungsZeilenAnfang-J12,1)<>\"\",INDEX(Ernährung[],ErnährungLetztesEnde-ErnährungsZeilenAnfang-J12,6),NA())),NA())","v":10},{"$f":"IFERROR((IF(INDEX(Ernährung[],ErnährungLetztesEnde-ErnährungsZeilenAnfang-J12,1)<>\"\",INDEX(Ernährung[],ErnährungLetztesEnde-ErnährungsZeilenAnfang-J12,5),NA())),NA())","v":48},{"$f":"IFERROR((IF(INDEX(Ernährung[],ErnährungLetztesEnde-ErnährungsZeilenAnfang-J12,1)<>\"\",INDEX(Ernährung[],ErnährungLetztesEnde-ErnährungsZeilenAnfang-J12,4),NA())),NA())","v":245},5]
[{"$nulls":3},{"$f":"IFERROR(IF(INDEX(Ernährung[],ErnährungLetztesEnde-ErnährungsZeilenAnfang-J13,1)<>\"\",INDEX(Ernährung[],ErnährungLetztesEnde-ErnährungsZeilenAnfang-J13,1),\"\"),\"\")","v":"2017-05-11"},"DO",{"$f":"IFERROR((IF(INDEX(Ernährung[],ErnährungLetztesEnde-ErnährungsZeilenAnfang-J13,1)<>\"\",INDEX(Ernährung[],ErnährungLetztesEnde-ErnährungsZeilenAnfang-J13,7),NA())),NA())","v":5},{"$f":"IFERROR((IF(INDEX(Ernährung[],ErnährungLetztesEnde-ErnährungsZeilenAnfang-J13,1)<>\"\",INDEX(Ernährung[],ErnährungLetztesEnde-ErnährungsZeilenAnfang-J13,6),NA())),NA())","v":43},{"$f":"IFERROR((IF(INDEX(Ernährung[],ErnährungLetztesEnde-ErnährungsZeilenAnfang-J13,1)<>\"\",INDEX(Ernährung[],ErnährungLetztesEnde-ErnährungsZeilenAnfang-J13,5),NA())),NA())","v":11},{"$f":"IFERROR((IF(INDEX(Ernährung[],ErnährungLetztesEnde-ErnährungsZeilenAnfang-J13,1)<>\"\",INDEX(Ernährung[],ErnährungLetztesEnde-ErnährungsZeilenAnfang-J13,4),NA())),NA())","v":247},4]
[{"$nulls":3},{"$f":"IFERROR(IF(INDEX(Ernährung[],ErnährungLetztesEnde-ErnährungsZeilenAnfang-J14,1)<>\"\",INDEX(Ernährung[],ErnährungLetztesEnde-ErnährungsZeilenAnfang-J14,1),\"\"),\"\")","v":"2017-05-11"},"DO",{"$f":"IFERROR((IF(INDEX(Ernährung[],ErnährungLetztesEnde-ErnährungsZeilenAnfang-J14,1)<>\"\",INDEX(Ernährung[],ErnährungLetztesEnde-ErnährungsZeilenAnfang-J14,7),NA())),NA())","v":22},{"$f":"IFERROR((IF(INDEX(Ernährung[],ErnährungLetztesEnde-ErnährungsZeilenAnfang-J14,1)<>\"\",INDEX(Ernährung[],ErnährungLetztesEnde-ErnährungsZeilenAnfang-J14,6),NA())),NA())","v":32},{"$f":"IFERROR((IF(INDEX(Ernährung[],ErnährungLetztesEnde-ErnährungsZeilenAnfang-J14,1)<>\"\",INDEX(Ernährung[],ErnährungLetztesEnde-ErnährungsZeilenAnfang-J14,5),NA())),NA())","v":64},{"$f":"IFERROR((IF(INDEX(Ernährung[],ErnährungLetztesEnde-ErnährungsZeilenAnfang-J14,1)<>\"\",INDEX(Ernährung[],ErnährungLetztesEnde-ErnährungsZeilenAnfang-J14,4),NA())),NA())","v":456},3]
[{"$nulls":3},{"$f":"IFERROR(IF(INDEX(Ernährung[],ErnährungLetztesEnde-ErnährungsZeilenAnfang-J15,1)<>\"\",INDEX(Ernährung[],ErnährungLetztesEnde-ErnährungsZeilenAnfang-J15,1),\"\"),\"\")","v":"2017-05-12"},"FR",{"$f":"IFERROR((IF(INDEX(Ernährung[],ErnährungLetztesEnde-ErnährungsZeilenAnfang-J15,1)<>\"\",INDEX(Ernährung[],ErnährungLetztesEnde-ErnährungsZeilenAnfang-J15,7),NA())),NA())","v":10},{"$f":"IFERROR((IF(INDEX(Ernährung[],ErnährungLetztesEnde-ErnährungsZeilenAnfang-J15,1)<>\"\",INDEX(Ernährung[],ErnährungLetztesEnde-ErnährungsZeilenAnfang-J15,6),NA())),NA())","v":2},{"$f":"IFERROR((IF(INDEX(Ernährung[],ErnährungLetztesEnde-ErnährungsZeilenAnfang-J15,1)<>\"\",INDEX(Ernährung[],ErnährungLetztesEnde-ErnährungsZeilenAnfang-J15,5),NA())),NA())","v":10},{"$f":"IFERROR((IF(INDEX(Ernährung[],ErnährungLetztesEnde-ErnährungsZeilenAnfang-J15,1)<>\"\",INDEX(Ernährung[],ErnährungLetztesEnde-ErnährungsZeilenAnfang-J15,4),NA())),NA())","v":10},2]
[{"$nulls":3},{"$f":"IFERROR(IF(INDEX(Ernährung[],ErnährungLetztesEnde-ErnährungsZeilenAnfang-J16,1)<>\"\",INDEX(Ernährung[],ErnährungLetztesEnde-ErnährungsZeilenAnfang-J16,1),\"\"),\"\")","v":"2017-05-12"},"FR",{"$f":"IFERROR((IF(INDEX(Ernährung[],ErnährungLetztesEnde-ErnährungsZeilenAnfang-J16,1)<>\"\",INDEX(Ernährung[],ErnährungLetztesEnde-ErnährungsZeilenAnfang-J16,7),NA())),NA())","v":5.51},{"$f":"IFERROR((IF(INDEX(Ernährung[],ErnährungLetztesEnde-ErnährungsZeilenAnfang-J16,1)<>\"\",INDEX(Ernährung[],ErnährungLetztesEnde-ErnährungsZeilenAnfang-J16,6),NA())),NA())","v":8.81},{"$f":"IFERROR((IF(INDEX(Ernährung[],ErnährungLetztesEnde-ErnährungsZeilenAnfang-J16,1)<>\"\",INDEX(Ernährung[],ErnährungLetztesEnde-ErnährungsZeilenAnfang-J16,5),NA())),NA())","v":12.36},{"$f":"IFERROR((IF(INDEX(Ernährung[],ErnährungLetztesEnde-ErnährungsZeilenAnfang-J16,1)<>\"\",INDEX(Ernährung[],ErnährungLetztesEnde-ErnährungsZeilenAnfang-J16,4),NA())),NA())","v":135},1]
[{"$nulls":3},{"$f":"IFERROR(IF(INDEX(Ernährung[],ErnährungLetztesEnde-ErnährungsZeilenAnfang-J17,1)<>\"\",INDEX(Ernährung[],ErnährungLetztesEnde-ErnährungsZeilenAnfang-J17,1),\"\"),\"\")","v":"2017-05-12"},"FR",{"$f":"IFERROR((IF(INDEX(Ernährung[],ErnährungLetztesEnde-ErnährungsZeilenAnfang-J17,1)<>\"\",INDEX(Ernährung[],ErnährungLetztesEnde-ErnährungsZeilenAnfang-J17,7),NA())),NA())","v":15},{"$f":"IFERROR((IF(INDEX(Ernährung[],ErnährungLetztesEnde-ErnährungsZeilenAnfang-J17,1)<>\"\",INDEX(Ernährung[],ErnährungLetztesEnde-ErnährungsZeilenAnfang-J17,6),NA())),NA())","v":5.43},{"$f":"IFERROR((IF(INDEX(Ernährung[],ErnährungLetztesEnde-ErnährungsZeilenAnfang-J17,1)<>\"\",INDEX(Ernährung[],ErnährungLetztesEnde-ErnährungsZeilenAnfang-J17,5),NA())),NA())","v":7},{"$f":"IFERROR((IF(INDEX(Ernährung[],ErnährungLetztesEnde-ErnährungsZeilenAnfang-J17,1)<>\"\",INDEX(Ernährung[],ErnährungLetztesEnde-ErnährungsZeilenAnfang-J17,4),NA())),NA())","v":184},0]
[{"$nulls":3},{"$f":"IFERROR(IF(INDEX(Ernährung[],ErnährungLetztesEnde-ErnährungsZeilenAnfang-J18,1)<>\"\",INDEX(Ernährung[],ErnährungLetztesEnde-ErnährungsZeilenAnfang-J18,1)),\"\")","v":"2017-05-14"},"SO",{"$f":"IFERROR((IF(INDEX(Ernährung[],ErnährungLetztesEnde-ErnährungsZeilenAnfang-J18,1)<>\"\",INDEX(Ernährung[],ErnährungLetztesEnde-ErnährungsZeilenAnfang-J18,7),NA())),NA())","v":21},{"$f":"IFERROR((IF(INDEX(Ernährung[],ErnährungLetztesEnde-ErnährungsZeilenAnfang-J18,1)<>\"\",INDEX(Ernährung[],ErnährungLetztesEnde-ErnährungsZeilenAnfang-J18,6),NA())),NA())","v":13.5},{"$f":"IFERROR((IF(INDEX(Ernährung[],ErnährungLetztesEnde-ErnährungsZeilenAnfang-J18,1)<>\"\",INDEX(Ernährung[],ErnährungLetztesEnde-ErnährungsZeilenAnfang-J18,5),NA())),NA())","v":62},{"$f":"IFERROR((IF(INDEX(Ernährung[],ErnährungLetztesEnde-ErnährungsZeilenAnfang-J18,1)<>\"\",INDEX(Ernährung[],ErnährungLetztesEnde-ErnährungsZeilenAnfang-J18,4),NA())),NA())","v":477},-1]
[]
[null,"TRAININGSANALYSE-DIAGRAMMDATEN"]
[]
[null,"Anfangszeile",{"$f":"ROW(Training[[#Headers],[DATUM]])+1","v":4},"DATUM","TAG","DAUER (MINUTEN)","VERBRAUCHTE KALORIEN","Anzahl"]
[null,"Letzter Trainingseintrag",{"$f":"MATCH(9.99E+307,Training[DATUM])+TrainingsZeilenAnfang-1","v":20},{"$f":"IFERROR(IF(INDEX(Training[],TrainingsLetztesEnde-TrainingsZeilenAnfang-H23,1)<>\"\",INDEX(Training[],TrainingsLetztesEnde-TrainingsZeilenAnfang-H23,1)),\"\")","v":"2017-05-29"},{"$f":"UPPER(TEXT(D23,\"TTT\"))","v":"MO"},{"$f":"IFERROR((IF(INDEX(Training[],TrainingsLetztesEnde-TrainingsZeilenAnfang-H23,1)<>\"\",INDEX(Training[],TrainingsLetztesEnde-TrainingsZeilenAnfang-H23,2),0)),0)","v":20},{"$f":"IFERROR((IF(INDEX(Training[],TrainingsLetztesEnde-TrainingsZeilenAnfang-H23,2)<>\"\",INDEX(Training[],TrainingsLetztesEnde-TrainingsZeilenAnfang-H23,3),0)),0)","v":195},-1]
[{"$nulls":3},{"$f":"IFERROR(IF(INDEX(Training[],TrainingsLetztesEnde-TrainingsZeilenAnfang-H24,1)<>\"\",INDEX(Training[],TrainingsLetztesEnde-TrainingsZeilenAnfang-H24,1)),\"\")","v":"2017-05-28"},"SO",{"$f":"IFERROR((IF(INDEX(Training[],TrainingsLetztesEnde-TrainingsZeilenAnfang-H24,1)<>\"\",INDEX(Training[],TrainingsLetztesEnde-TrainingsZeilenAnfang-H24,2),0)),0)","v":25},{"$f":"IFERROR((IF(INDEX(Training[],TrainingsLetztesEnde-TrainingsZeilenAnfang-H24,2)<>\"\",INDEX(Training[],TrainingsLetztesEnde-TrainingsZeilenAnfang-H24,3),0)),0)","v":265},0]
[{"$nulls":3},{"$f":"IFERROR(IF(INDEX(Training[],TrainingsLetztesEnde-TrainingsZeilenAnfang-H25,1)<>\"\",INDEX(Training[],TrainingsLetztesEnde-TrainingsZeilenAnfang-H25,1)),\"\")","v":"2017-05-27"},"SA",{"$f":"IFERROR((IF(INDEX(Training[],TrainingsLetztesEnde-TrainingsZeilenAnfang-H25,1)<>\"\",INDEX(Training[],TrainingsLetztesEnde-TrainingsZeilenAnfang-H25,2),0)),0)","v":40},{"$f":"IFERROR((IF(INDEX(Training[],TrainingsLetztesEnde-TrainingsZeilenAnfang-H25,2)<>\"\",INDEX(Training[],TrainingsLetztesEnde-TrainingsZeilenAnfang-H25,3),0)),0)","v":290},1]
[{"$nulls":3},{"$f":"IFERROR(IF(INDEX(Training[],TrainingsLetztesEnde-TrainingsZeilenAnfang-H26,1)<>\"\",INDEX(Training[],TrainingsLetztesEnde-TrainingsZeilenAnfang-H26,1)),\"\")","v":"2017-05-26"},"FR",{"$f":"IFERROR((IF(INDEX(Training[],TrainingsLetztesEnde-TrainingsZeilenAnfang-H26,1)<>\"\",INDEX(Training[],TrainingsLetztesEnde-TrainingsZeilenAnfang-H26,2),0)),0)","v":35},{"$f":"IFERROR((IF(INDEX(Training[],TrainingsLetztesEnde-TrainingsZeilenAnfang-H26,2)<>\"\",INDEX(Training[],TrainingsLetztesEnde-TrainingsZeilenAnfang-H26,3),0)),0)","v":320},2]
[{"$nulls":3},{"$f":"IFERROR(IF(INDEX(Training[],TrainingsLetztesEnde-TrainingsZeilenAnfang-H27,1)<>\"\",INDEX(Training[],TrainingsLetztesEnde-TrainingsZeilenAnfang-H27,1)),\"\")","v":"2017-05-25"},"DO",{"$f":"IFERROR((IF(INDEX(Training[],TrainingsLetztesEnde-TrainingsZeilenAnfang-H27,1)<>\"\",INDEX(Training[],TrainingsLetztesEnde-TrainingsZeilenAnfang-H27,2),0)),0)","v":45},{"$f":"IFERROR((IF(INDEX(Training[],TrainingsLetztesEnde-TrainingsZeilenAnfang-H27,2)<>\"\",INDEX(Training[],TrainingsLetztesEnde-TrainingsZeilenAnfang-H27,3),0)),0)","v":350},3]
[{"$nulls":3},{"$f":"IFERROR(IF(INDEX(Training[],TrainingsLetztesEnde-TrainingsZeilenAnfang-H28,1)<>\"\",INDEX(Training[],TrainingsLetztesEnde-TrainingsZeilenAnfang-H28,1)),\"\")","v":"2017-05-24"},"MI",{"$f":"IFERROR((IF(INDEX(Training[],TrainingsLetztesEnde-TrainingsZeilenAnfang-H28,1)<>\"\",INDEX(Training[],TrainingsLetztesEnde-TrainingsZeilenAnfang-H28,2),0)),0)","v":20},{"$f":"IFERROR((IF(INDEX(Training[],TrainingsLetztesEnde-TrainingsZeilenAnfang-H28,2)<>\"\",INDEX(Training[],TrainingsLetztesEnde-TrainingsZeilenAnfang-H28,3),0)),0)","v":295},4]
[{"$nulls":3},{"$f":"IFERROR(IF(INDEX(Training[],TrainingsLetztesEnde-TrainingsZeilenAnfang-H29,1)<>\"\",INDEX(Training[],TrainingsLetztesEnde-TrainingsZeilenAnfang-H29,1)),\"\")","v":"2017-05-23"},"DI",{"$f":"IFERROR((IF(INDEX(Training[],TrainingsLetztesEnde-TrainingsZeilenAnfang-H29,1)<>\"\",INDEX(Training[],TrainingsLetztesEnde-TrainingsZeilenAnfang-H29,2),0)),0)","v":40},{"$f":"IFERROR((IF(INDEX(Training[],TrainingsLetztesEnde-TrainingsZeilenAnfang-H29,2)<>\"\",INDEX(Training[],TrainingsLetztesEnde-TrainingsZeilenAnfang-H29,3),0)),0)","v":270},5]
[{"$nulls":3},{"$f":"IFERROR(IF(INDEX(Training[],TrainingsLetztesEnde-TrainingsZeilenAnfang-H30,1)<>\"\",INDEX(Training[],TrainingsLetztesEnde-TrainingsZeilenAnfang-H30,1)),\"\")","v":"2017-05-22"},"MO",{"$f":"IFERROR((IF(INDEX(Training[],TrainingsLetztesEnde-TrainingsZeilenAnfang-H30,1)<>\"\",INDEX(Training[],TrainingsLetztesEnde-TrainingsZeilenAnfang-H30,2),0)),0)","v":45},{"$f":"IFERROR((IF(INDEX(Training[],TrainingsLetztesEnde-TrainingsZeilenAnfang-H30,2)<>\"\",INDEX(Training[],TrainingsLetztesEnde-TrainingsZeilenAnfang-H30,3),0)),0)","v":325},6]
[{"$nulls":3},{"$f":"IFERROR(IF(INDEX(Training[],TrainingsLetztesEnde-TrainingsZeilenAnfang-H31,1)<>\"\",INDEX(Training[],TrainingsLetztesEnde-TrainingsZeilenAnfang-H31,1)),\"\")","v":"2017-05-21"},"SO",{"$f":"IFERROR((IF(INDEX(Training[],TrainingsLetztesEnde-TrainingsZeilenAnfang-H31,1)<>\"\",INDEX(Training[],TrainingsLetztesEnde-TrainingsZeilenAnfang-H31,2),0)),0)","v":40},{"$f":"IFERROR((IF(INDEX(Training[],TrainingsLetztesEnde-TrainingsZeilenAnfang-H31,2)<>\"\",INDEX(Training[],TrainingsLetztesEnde-TrainingsZeilenAnfang-H31,3),0)),0)","v":175},7]
[{"$nulls":3},{"$f":"IFERROR(IF(INDEX(Training[],TrainingsLetztesEnde-TrainingsZeilenAnfang-H32,1)<>\"\",INDEX(Training[],TrainingsLetztesEnde-TrainingsZeilenAnfang-H32,1)),\"\")","v":"2017-05-20"},"SA",{"$f":"IFERROR((IF(INDEX(Training[],TrainingsLetztesEnde-TrainingsZeilenAnfang-H32,1)<>\"\",INDEX(Training[],TrainingsLetztesEnde-TrainingsZeilenAnfang-H32,2),0)),0)","v":30},{"$f":"IFERROR((IF(INDEX(Training[],TrainingsLetztesEnde-TrainingsZeilenAnfang-H32,2)<>\"\",INDEX(Training[],TrainingsLetztesEnde-TrainingsZeilenAnfang-H32,3),0)),0)","v":335},8]
[{"$nulls":3},{"$f":"IFERROR(IF(INDEX(Training[],TrainingsLetztesEnde-TrainingsZeilenAnfang-H33,1)<>\"\",INDEX(Training[],TrainingsLetztesEnde-TrainingsZeilenAnfang-H33,1)),\"\")","v":"2017-05-19"},"FR",{"$f":"IFERROR((IF(INDEX(Training[],TrainingsLetztesEnde-TrainingsZeilenAnfang-H33,1)<>\"\",INDEX(Training[],TrainingsLetztesEnde-TrainingsZeilenAnfang-H33,2),0)),0)","v":40},{"$f":"IFERROR((IF(INDEX(Training[],TrainingsLetztesEnde-TrainingsZeilenAnfang-H33,2)<>\"\",INDEX(Training[],TrainingsLetztesEnde-TrainingsZeilenAnfang-H33,3),0)),0)","v":205},9]
[{"$nulls":3},{"$f":"IFERROR(IF(INDEX(Training[],TrainingsLetztesEnde-TrainingsZeilenAnfang-H34,1)<>\"\",INDEX(Training[],TrainingsLetztesEnde-TrainingsZeilenAnfang-H34,1)),\"\")","v":"2017-05-18"},"DO",{"$f":"IFERROR((IF(INDEX(Training[],TrainingsLetztesEnde-TrainingsZeilenAnfang-H34,1)<>\"\",INDEX(Training[],TrainingsLetztesEnde-TrainingsZeilenAnfang-H34,2),0)),0)","v":20},{"$f":"IFERROR((IF(INDEX(Training[],TrainingsLetztesEnde-TrainingsZeilenAnfang-H34,2)<>\"\",INDEX(Training[],TrainingsLetztesEnde-TrainingsZeilenAnfang-H34,3),0)),0)","v":285},10]
[{"$nulls":3},{"$f":"IFERROR(IF(INDEX(Training[],TrainingsLetztesEnde-TrainingsZeilenAnfang-H35,1)<>\"\",INDEX(Training[],TrainingsLetztesEnde-TrainingsZeilenAnfang-H35,1)),\"\")","v":"2017-05-17"},"MI",{"$f":"IFERROR((IF(INDEX(Training[],TrainingsLetztesEnde-TrainingsZeilenAnfang-H35,1)<>\"\",INDEX(Training[],TrainingsLetztesEnde-TrainingsZeilenAnfang-H35,2),0)),0)","v":25},{"$f":"IFERROR((IF(INDEX(Training[],TrainingsLetztesEnde-TrainingsZeilenAnfang-H35,2)<>\"\",INDEX(Training[],TrainingsLetztesEnde-TrainingsZeilenAnfang-H35,3),0)),0)","v":125},11]
[{"$nulls":3},{"$f":"IFERROR(IF(INDEX(Training[],TrainingsLetztesEnde-TrainingsZeilenAnfang-H36,1)<>\"\",INDEX(Training[],TrainingsLetztesEnde-TrainingsZeilenAnfang-H36,1)),\"\")","v":"2017-05-16"},"DI",{"$f":"IFERROR((IF(INDEX(Training[],TrainingsLetztesEnde-TrainingsZeilenAnfang-H36,1)<>\"\",INDEX(Training[],TrainingsLetztesEnde-TrainingsZeilenAnfang-H36,2),0)),0)","v":30},{"$f":"IFERROR((IF(INDEX(Training[],TrainingsLetztesEnde-TrainingsZeilenAnfang-H36,2)<>\"\",INDEX(Training[],TrainingsLetztesEnde-TrainingsZeilenAnfang-H36,3),0)),0)","v":150},12]